fUST/lending_fUST_20240812
["ID","MTS","AMOUNT","RATE_DAILY","PERIOD"]
[334653500,1723397443386,-242.619234,0.0001865,2]
[334653501,1723397443395,-338.197842,0.0001865,2]
[334653502,1723397443406,-151.0,0.0001865,2]
[334653503,1723397443417,-151.0,0.0001865,2]
[334653504,1723397443428,-31620.80394169,0.0001865,2]
[334653525,1723397446566,-414.28019691,0.00018356,2]
[334653526,1723397446577,-2226.73962445,0.0001865,2]
[334653543,1723397858146,10000.0,0.0001501,2]
[334653545,1723397876390,10000.0,0.0001501,2]
[334653546,1723397893158,10000.0,0.0001501,2]
[334653547,1723397899090,168.176842,0.00014247,2]
[334653548,1723397929062,6290.0,0.0001501,2]
[334653566,1723398446278,-203.5066412,0.00015746,2]
[334653567,1723398446470,-154.76012181,0.00015751,2]
[334653568,1723398446493,-154.76012181,0.00015751,2]
[334653569,1723398446516,-455.86751894,0.00016347,2]
[334653579,1723398569136,-178.79107712,0.00015712,2]
[334653580,1723398569163,-154.76012181,0.00015746,2]
[334653581,1723398569188,-154.76012181,0.00015746,2]
[334653656,1723398631643,-154.76012181,0.0001611,2]
[334653659,1723398631654,-161.75286654,0.00016309,2]
[334653660,1723398631665,-29.27436047,0.00016347,2]
[334653663,1723398631678,-167.36429059,0.00016347,2]
[334653665,1723398631688,-300.0,0.00016384,2]
[334653667,1723398631697,-5317.41714337,0.00016385,2]
[334653726,1723398642617,-471.04982511,0.0001611,2]
[334653729,1723398642630,-9011.76615423,0.00016385,2]
[334653731,1723398642641,-173.856206,0.00016902,2]
[334653732,1723398642651,-664.85544732,0.00017019,2]
[334653734,1723398642660,-664.85544732,0.00017019,2]
[334653736,1723398642669,-1163.86062826,0.00017019,2]
[334653738,1723398642678,-173.856206,0.00017195,2]
[334653739,1723398642687,-210.41126744,0.00017379,2]
[334653741,1723398642698,-480.116952,0.00017379,2]
[334653743,1723398642708,-728.15079492,0.00017389,2]
[334653745,1723398642718,-4415.56890677,0.00017389,2]
[334653746,1723398642729,-288.02845211,0.00017389,2]
[334653747,1723398642738,-10392.06190893,0.00017403,2]
[334653748,1723398642748,-156.50755959,0.00017403,2]
[334653749,1723398642758,-173.856206,0.00017489,2]
[334653750,1723398642767,-173.856206,0.00017782,2]
[334653751,1723398642776,-420.0,0.00018023,2]
[334653752,1723398642786,-250.53341872,0.00018125,2]
[334653753,1723398642796,-1001.45167858,0.00018235,2]
[334653754,1723398642805,-154.76012181,0.00018557,2]
[334653755,1723398642814,-3446.15907692,0.00018561,2]
[334653756,1723398642826,-1366.3583558,0.00018561,2]
[334653757,1723398642862,-509.16177719,0.00018561,2]
[334653758,1723398642872,-153.0,0.00018562,2]
[334653759,1723398642881,-153.0,0.00018569,2]
[334653760,1723398642890,-153.0,0.00018569,2]
[334653761,1723398642900,-153.0,0.00018569,2]
[334653762,1723398642909,-153.0,0.00018569,2]
[334653763,1723398642919,-153.0,0.00018569,2]
[334653764,1723398642928,-153.0,0.00018569,2]
[334653765,1723398642937,-153.0,0.00018569,2]
[334653766,1723398642947,-153.0,0.00018569,2]
[334653767,1723398642956,-153.0,0.00018569,2]
[334653768,1723398642965,-153.0,0.00018569,2]
[334653769,1723398642974,-153.0,0.00018569,2]
[334653770,1723398642984,-153.0,0.00018569,2]
[334653771,1723398642994,-153.0,0.00018569,2]
[334653772,1723398643004,-153.0,0.00018569,2]
[334653773,1723398643013,-153.0,0.00018569,2]
[334653774,1723398643022,-153.0,0.00018569,2]
[334653775,1723398643033,-153.0,0.00018569,2]
[334653776,1723398643043,-153.0,0.00018569,2]
[334653777,1723398643054,-153.0,0.00018569,2]
[334653778,1723398643064,-153.0,0.00018569,2]
[334653779,1723398643076,-153.0,0.00018569,2]
[334653780,1723398643086,-153.0,0.00018569,2]
[334653781,1723398643095,-153.0,0.00018569,2]
[334653782,1723398643105,-153.0,0.00018569,2]
[334653783,1723398643116,-153.0,0.00018569,2]
[334653784,1723398643126,-153.0,0.00018569,2]
[334653785,1723398643136,-153.0,0.00018569,2]
[334653786,1723398643147,-153.0,0.00018569,2]
[334653787,1723398643156,-153.0,0.00018569,2]
[334653788,1723398643165,-153.0,0.00018569,2]
[334653789,1723398643175,-153.0,0.00018569,2]
[334653790,1723398643184,-153.0,0.00018569,2]
[334653791,1723398643193,-153.0,0.00018569,2]
[334653792,1723398643203,-153.0,0.00018569,2]
[334653793,1723398643213,-153.0,0.00018569,2]
[334653794,1723398643223,-153.0,0.00018569,2]
[334653795,1723398643232,-153.0,0.00018569,2]
[334653796,1723398643243,-153.0,0.00018569,2]
[334653797,1723398643252,-153.0,0.00018569,2]
[334653798,1723398643261,-153.0,0.00018569,2]
[334653799,1723398643271,-153.0,0.00018569,2]
[334653800,1723398643281,-153.0,0.00018569,2]
[334653801,1723398643290,-153.0,0.00018569,2]
[334653802,1723398643299,-153.0,0.00018569,2]
[334653803,1723398643309,-153.0,0.00018569,2]
[334653804,1723398643318,-153.0,0.00018569,2]
[334653805,1723398643327,-153.0,0.00018569,2]
[334653806,1723398643336,-153.0,0.00018569,2]
[334653807,1723398643346,-153.0,0.00018569,2]
[334653808,1723398643355,-153.0,0.00018569,2]
[334653809,1723398643364,-153.0,0.00018569,2]
[334653810,1723398643376,-153.0,0.00018569,2]
[334653811,1723398643385,-153.0,0.00018569,2]
[334653812,1723398643394,-153.0,0.00018569,2]
[334653813,1723398643404,-153.0,0.00018569,2]
[334653814,1723398643413,-153.0,0.00018569,2]
[334653815,1723398643422,-153.0,0.00018569,2]
[334653816,1723398643432,-153.0,0.00018569,2]
[334653818,1723398643441,-153.0,0.00018569,2]
[334653819,1723398643450,-153.0,0.00018569,2]
[334653820,1723398643459,-153.0,0.00018569,2]
[334653821,1723398643468,-153.0,0.00018569,2]
[334653822,1723398643478,-153.0,0.00018569,2]
[334653823,1723398643487,-153.0,0.00018569,2]
[334653824,1723398643497,-153.0,0.00018569,2]
[334653825,1723398643506,-153.0,0.00018569,2]
[334653826,1723398643515,-153.0,0.00018569,2]
[334653827,1723398643525,-153.0,0.00018569,2]
[334653828,1723398643535,-317.755877,0.0001859,2]
[334653829,1723398643544,-317.755877,0.0001859,2]
[334653830,1723398643554,-192.3863743,0.000186,2]
[334653831,1723398643563,-317.755877,0.00018611,2]
[334653832,1723398643573,-317.755877,0.00018611,2]
[334653833,1723398643583,-310.0,0.00018611,2]
[334653834,1723398643592,-452.707645,0.00018611,2]
[334653835,1723398643602,-221.6,0.00018614,2]
[334653836,1723398643612,-178.6,0.00018614,2]
[334653837,1723398643626,-1381.9087858,0.0001864,2]
[334653838,1723398643635,-317.755877,0.0001865,2]
[334653839,1723398643644,-317.755877,0.0001865,2]
[334653840,1723398643653,-1449.22191852,0.00018657,2]
[334653841,1723398643662,-151.0,0.00018663,2]
[334653842,1723398643671,-1381.90878576,0.00018677,2]
[334653843,1723398643681,-150.112233,0.000187,2]
[334653844,1723398643690,-150.112233,0.000187,2]
[334653845,1723398643700,-150.112233,0.000187,2]
[334653846,1723398643710,-1381.90878576,0.00018713,2]
[334653847,1723398643719,-296.91350523,0.00018724,2]
[334653848,1723398643728,-555.66297447,0.00018724,2]
[334653849,1723398643738,-2000.0,0.00018724,2]
[334653850,1723398643747,-168459.436283,0.00018725,2]
[334653851,1723398643756,-4415.56890671,0.00018726,2]
[334653852,1723398643766,-500.0,0.00018734,2]
[334653853,1723398643775,-500.0,0.00018734,2]
[334653854,1723398643784,-500.0,0.00018734,2]
[334653855,1723398643793,-231.02529321,0.00018734,2]
[334653856,1723398643803,-500.0,0.00018734,2]
[334653857,1723398643812,-500.0,0.00018734,2]
[334653858,1723398643822,-500.0,0.00018734,2]
[334653859,1723398643831,-500.0,0.00018734,2]
[334653860,1723398643840,-36162.39066896,0.00018735,2]
[334653861,1723398643849,-88888.0,0.00018735,2]
[334653862,1723398643858,-151.0,0.0001874,2]
[334653863,1723398643869,-1381.90878576,0.0001875,2]
[334653864,1723398643878,-250.94975,0.0001875,2]
[334653865,1723398643888,-1381.90878576,0.00018786,2]
[334653866,1723398643897,-2381.16962736,0.00018786,2]
[334653867,1723398643906,-157.23871665,0.00018786,2]
[334653868,1723398644058,-241.01224895,0.00018799,2]
[334653869,1723398644068,-150.112233,0.000188,2]
[334653870,1723398644081,-150.112233,0.000188,2]
[334653871,1723398644090,-150.112233,0.000188,2]
[334653872,1723398644100,-150.112233,0.000188,2]
[334653873,1723398644109,-150.112233,0.000188,2]
[334653874,1723398644122,-150.112233,0.000188,2]
[334653875,1723398644131,-84229.7181415,0.00018825,2]
[334653876,1723398644140,-250.83146237,0.00018825,2]
[334653877,1723398644153,-155.03260635,0.00018845,2]
[334653878,1723398644164,-187.29962987,0.00018845,2]
[334653879,1723398644174,-151.0,0.0001885,2]
[334653880,1723398644183,-151.0,0.00018875,2]
[334653881,1723398644192,-151.0,0.00018876,2]
[334653882,1723398644203,-151.0,0.00018876,2]
[334653883,1723398644213,-151.0,0.00018876,2]
[334653884,1723398644222,-151.0,0.00018876,2]
[334653885,1723398644232,-645.489184,0.00018876,2]
[334653886,1723398644242,-863.307386,0.00018876,2]
[334653887,1723398644251,-645.489184,0.00018876,2]
[334653888,1723398644261,-863.307386,0.00018876,2]
[334653889,1723398644271,-1246.942909,0.00018876,2]
[334653890,1723398644281,-2750.949874,0.00018876,2]
[334653891,1723398644290,-1246.942909,0.00018876,2]
[334653892,1723398644299,-2750.949874,0.00018876,2]
[334653893,1723398644310,-476.754879,0.00018876,2]
[334653894,1723398644320,-476.754879,0.00018876,2]
[334653895,1723398644330,-505.891707,0.00018876,2]
[334653896,1723398644339,-505.891707,0.00018876,2]
[334653897,1723398644348,-168459.436283,0.00018876,2]
[334653898,1723398644358,-188798.78197852,0.00018886,2]
[334653899,1723398644368,-317.755877,0.00018886,2]
[334653900,1723398644377,-317.755877,0.00018886,2]
[334653901,1723398644387,-151.0,0.00018886,2]
[334653902,1723398644396,-151.0,0.00018886,2]
[334653903,1723398644406,-151.0,0.00018886,2]
[334653904,1723398644415,-151.0,0.00018886,2]
[334653905,1723398644424,-249.315387,0.00018886,2]
[334653906,1723398644433,-249.315387,0.00018886,2]
[334653907,1723398644443,-151.0,0.00018886,2]
[334653908,1723398644452,-151.0,0.00018886,2]
[334653909,1723398644461,-151.0,0.00018886,2]
[334653910,1723398644470,-151.0,0.00018886,2]
[334653911,1723398644480,-151.0,0.00018886,2]
[334653912,1723398644490,-573.357803,0.00018886,2]
[334653913,1723398644498,-573.357803,0.00018886,2]
[334653914,1723398644507,-615.524192,0.00018886,2]
[334653915,1723398644517,-615.524192,0.00018886,2]
[334653916,1723398644526,-151.0,0.00018886,2]
[334653917,1723398644535,-2250.690851,0.00018886,2]
[334653918,1723398644545,-2250.690851,0.00018886,2]
[334653919,1723398644554,-151.0,0.00018886,2]
[334653920,1723398644563,-2931.116564,0.00018886,2]
[334653921,1723398644572,-151.0,0.00018886,2]
[334653922,1723398644582,-2931.116564,0.00018886,2]
[334653923,1723398644592,-151.0,0.00018886,2]
[334653924,1723398644601,-170.644083,0.00018886,2]
[334653925,1723398644610,-170.644083,0.00018886,2]
[334653926,1723398644622,-214.569133,0.00018886,2]
[334653927,1723398644633,-151.0,0.00018886,2]
[334653928,1723398644644,-214.569133,0.00018886,2]
[334653929,1723398644654,-151.0,0.00018886,2]
[334653930,1723398644663,-240.306013,0.00018886,2]
[334653931,1723398644672,-240.306013,0.00018886,2]
[334653932,1723398644684,-2877.331405,0.00018886,2]
[334653933,1723398644694,-2877.331405,0.00018886,2]
[334653934,1723398644704,-151.0,0.00018886,2]
[334653935,1723398644714,-151.0,0.00018886,2]
[334653936,1723398644723,-151.0,0.00018886,2]
[334653937,1723398644732,-398.828525,0.00018886,2]
[334653938,1723398644742,-398.828525,0.00018886,2]
[334653939,1723398644751,-617.348116,0.00018886,2]
[334653940,1723398644761,-976.245818,0.00018886,2]
[334653941,1723398644770,-617.348116,0.00018886,2]
[334653942,1723398644779,-976.245818,0.00018886,2]
[334653943,1723398644788,-151.0,0.00018886,2]
[334653944,1723398644797,-277.808616,0.00018886,2]
[334653945,1723398644806,-277.808616,0.00018886,2]
[334653946,1723398644816,-645.489184,0.00018886,2]
[334653947,1723398644824,-863.307386,0.00018886,2]
[334653948,1723398644834,-645.489184,0.00018886,2]
[334653949,1723398644842,-863.307386,0.00018886,2]
[334653950,1723398644852,-1246.942909,0.00018886,2]
[334653951,1723398644861,-151.0,0.00018886,2]
[334653952,1723398644874,-2750.949874,0.00018886,2]
[334653953,1723398644884,-1246.942909,0.00018886,2]
[334653954,1723398644895,-2750.949874,0.00018886,2]
[334653955,1723398644904,-151.0,0.00018886,2]
[334653956,1723398644913,-476.754879,0.00018886,2]
[334653957,1723398644922,-476.754879,0.00018886,2]
[334653958,1723398644932,-505.891707,0.00018886,2]
[334653959,1723398644944,-505.891707,0.00018886,2]
[334653960,1723398644953,-151.0,0.00018886,2]
[334653961,1723398644964,-196.47393977,0.00018899,2]
[334653962,1723398644973,-150.112233,0.000189,2]
[334653963,1723398644983,-150.112233,0.000189,2]
[334653964,1723398644993,-150.112233,0.000189,2]
[334653965,1723398645003,-150.112233,0.000189,2]
[334653966,1723398645012,-150.112233,0.000189,2]
[334653967,1723398645022,-150.112233,0.000189,2]
[334653968,1723398645032,-150.112233,0.000189,2]
[334653969,1723398645041,-150.112233,0.000189,2]
[334653970,1723398645050,-150.112233,0.000189,2]
[334653971,1723398645060,-150.112233,0.000189,2]
[334653972,1723398645073,-475.0,0.00018904,2]
[334653973,1723398645082,-245.00380538,0.00018921,2]
[334653974,1723398645091,-221.6,0.00018937,2]
[334653975,1723398645101,-178.6,0.00018937,2]
[334653976,1723398645110,-154.78325886,0.00018969,2]
[334653977,1723398645124,-200.0,0.00018973,2]
[334653978,1723398645133,-249.12131678,0.00018973,2]
[334653979,1723398645142,-200.0,0.00018973,2]
[334653980,1723398645152,-200.0,0.00018973,2]
[334653981,1723398645162,-200.0,0.00018973,2]
[334653982,1723398645171,-200.0,0.00018973,2]
[334653983,1723398645180,-168292.24312514,0.0001898,2]
[334653984,1723398645190,-151.0,0.0001898,2]
[334653985,1723398645199,-317.755877,0.0001898,2]
[334653986,1723398645208,-317.755877,0.0001898,2]
[334653987,1723398645217,-151.0,0.0001898,2]
[334653988,1723398645226,-151.0,0.0001898,2]
[334653989,1723398645235,-151.0,0.0001898,2]
[334653990,1723398645244,-151.0,0.0001898,2]
[334653991,1723398645254,-249.315387,0.0001898,2]
[334653992,1723398645263,-249.315387,0.0001898,2]
[334653993,1723398645272,-151.0,0.0001898,2]
[334653994,1723398645281,-151.0,0.0001898,2]
[334653995,1723398645290,-151.0,0.0001898,2]
[334653996,1723398645299,-151.0,0.0001898,2]
[334653997,1723398645308,-573.357803,0.0001898,2]
[334653998,1723398645318,-573.357803,0.0001898,2]
[334653999,1723398645327,-615.524192,0.0001898,2]
[334654000,1723398645336,-615.524192,0.0001898,2]
[334654001,1723398645345,-153.508507,0.0001898,2]
[334654002,1723398645355,-2250.690851,0.0001898,2]
[334654003,1723398645363,-2250.690851,0.0001898,2]
[334654004,1723398645375,-151.0,0.0001898,2]
[334654005,1723398645384,-2931.116564,0.0001898,2]
[334654006,1723398645394,-151.0,0.0001898,2]
[334654008,1723398645403,-2931.116564,0.0001898,2]
[334654009,1723398645413,-151.0,0.0001898,2]
[334654010,1723398645425,-170.644083,0.0001898,2]
[334654011,1723398645435,-170.644083,0.0001898,2]
[334654012,1723398645445,-214.569133,0.0001898,2]
[334654013,1723398645454,-151.0,0.0001898,2]
[334654014,1723398645465,-214.569133,0.0001898,2]
[334654015,1723398645476,-151.0,0.0001898,2]
[334654016,1723398645485,-240.306013,0.0001898,2]
[334654017,1723398645497,-240.306013,0.0001898,2]
[334654018,1723398645508,-2877.331405,0.0001898,2]
[334654019,1723398645517,-2877.331405,0.0001898,2]
[334654020,1723398645526,-151.0,0.0001898,2]
[334654021,1723398645536,-151.0,0.0001898,2]
[334654022,1723398645548,-151.0,0.0001898,2]
[334654023,1723398645557,-398.828525,0.0001898,2]
[334654024,1723398645566,-398.828525,0.0001898,2]
[334654026,1723398645576,-617.348116,0.0001898,2]
[334654028,1723398645585,-976.245818,0.0001898,2]
[334654030,1723398645595,-617.348116,0.0001898,2]
[334654031,1723398645605,-976.245818,0.0001898,2]
[334654032,1723398645614,-151.0,0.0001898,2]
[334654033,1723398645625,-277.808616,0.0001898,2]
[334654034,1723398645634,-277.808616,0.0001898,2]
[334654035,1723398645644,-645.489184,0.0001898,2]
[334654036,1723398645653,-863.307386,0.0001898,2]
[334654037,1723398645663,-645.489184,0.0001898,2]
[334654038,1723398645672,-863.307386,0.0001898,2]
[334654039,1723398645681,-1246.942909,0.0001898,2]
[334654040,1723398645690,-151.0,0.0001898,2]
[334654041,1723398645700,-2750.949874,0.0001898,2]
[334654042,1723398645709,-1246.942909,0.0001898,2]
[334654043,1723398645719,-2750.949874,0.0001898,2]
[334654044,1723398645728,-151.0,0.0001898,2]
[334654045,1723398645737,-476.754879,0.0001898,2]
[334654046,1723398645746,-476.754879,0.0001898,2]
[334654047,1723398645756,-505.891707,0.0001898,2]
[334654048,1723398645765,-505.891707,0.0001898,2]
[334654049,1723398645774,-151.0,0.0001898,2]
[334654050,1723398645783,-150.01,0.00018999,2]
[334654051,1723398645792,-3991.4671087,0.00018999,2]
[334654052,1723398645802,-35259.38837792,0.00018999,2]
[334654053,1723398645811,-38970.67805524,0.00019,2]
[334654054,1723398645820,-1000.0,0.00019,19]
[334654055,1723398645830,-17279.03294824,0.00019,2]
[334654056,1723398645840,-150.112233,0.00019,2]
[334654057,1723398645849,-150.112233,0.00019,2]
[334654058,1723398645858,-645.489184,0.00019,2]
[334654059,1723398645869,-863.307386,0.00019,2]
[334654060,1723398645879,-645.489184,0.00019,2]
[334654061,1723398645888,-863.307386,0.00019,2]
[334654062,1723398645898,-1246.942909,0.00019,2]
[334654063,1723398645907,-2750.949874,0.00019,2]
[334654064,1723398645916,-1246.942909,0.00019,2]
[334654065,1723398645926,-2750.949874,0.00019,2]
[334654066,1723398645936,-150.112233,0.00019,2]
[334654067,1723398645945,-151.0,0.00019,2]
[334654068,1723398645955,-153.0,0.00019041,2]
[334654069,1723398645965,-153.0,0.00019041,2]
[334654070,1723398645974,-153.0,0.00019041,2]
[334654071,1723398645983,-250.0,0.00019041,2]
[334654072,1723398645992,-155.48607972,0.00019086,2]
[334654073,1723398646001,-186.3613724,0.000191,2]
[334654074,1723398646010,-3000.0,0.000191,2]
[334654075,1723398646020,-586.05620106,0.00019107,2]
[334654076,1723398646029,-152.785211,0.00019107,2]
[334654077,1723398646039,-151.0,0.00019107,2]
[334654078,1723398646049,-151.0,0.00019107,2]
[334654079,1723398646059,-398.828525,0.00019107,2]
[334654080,1723398646068,-398.828525,0.00019107,2]
[334654081,1723398646081,-617.348116,0.00019107,2]
[334654082,1723398646091,-976.245818,0.00019107,2]
[334654083,1723398646100,-617.348116,0.00019107,2]
[334654084,1723398646109,-976.245818,0.00019107,2]
[334654085,1723398646124,-151.0,0.00019107,2]
[334654086,1723398646134,-277.808616,0.00019107,2]
[334654087,1723398646144,-277.808616,0.00019107,2]
[334654088,1723398646155,-151.0,0.00019107,2]
[334654089,1723398646165,-151.0,0.00019107,2]
[334654090,1723398646175,-3000.0,0.0001911,2]
[334654091,1723398646184,-476.754879,0.0001911,2]
[334654092,1723398646194,-476.754879,0.0001911,2]
[334654093,1723398646204,-505.891707,0.0001911,2]
[334654094,1723398646214,-505.891707,0.0001911,2]
[334654095,1723398646223,-150.0,0.00019117,2]
[334654096,1723398646233,-3000.0,0.0001912,2]
[334654097,1723398646242,-2877.331405,0.0001912,2]
[334654098,1723398646252,-2877.331405,0.0001912,2]
[334654099,1723398646261,-151.0,0.0001913,2]
[334654100,1723398646270,-151.0,0.0001913,2]
[334654101,1723398646280,-249.315387,0.0001913,2]
[334654102,1723398646290,-249.315387,0.0001913,2]
[334654103,1723398646300,-3000.0,0.0001913,2]
[334654104,1723398646310,-151.0,0.00019134,2]
[334654105,1723398646320,-151.0,0.00019134,2]
[334654106,1723398646330,-151.0,0.00019134,2]
[334654107,1723398646339,-573.357803,0.00019134,2]
[334654108,1723398646349,-573.357803,0.00019134,2]
[334654109,1723398646359,-2250.690851,0.00019134,2]
[334654110,1723398646370,-2250.690851,0.00019134,2]
[334654111,1723398646380,-2931.116564,0.00019134,2]
[334654112,1723398646390,-2931.116564,0.00019134,2]
[334654113,1723398646400,-151.0,0.00019134,2]
[334654114,1723398646409,-170.644083,0.00019134,2]
[334654115,1723398646419,-170.644083,0.00019134,2]
[334654116,1723398646431,-214.569133,0.00019134,2]
[334654117,1723398646441,-151.0,0.00019134,2]
[334654118,1723398646450,-214.569133,0.00019134,2]
[334654119,1723398646460,-170.191388,0.00019134,2]
[334654120,1723398646470,-240.306013,0.00019134,2]
[334654121,1723398646480,-240.306013,0.00019134,2]
[334654122,1723398646490,-301.25996446,0.00019139,2]
[334654123,1723398646499,-615.524192,0.0001914,2]
[334654124,1723398646510,-615.524192,0.0001914,2]
[334654125,1723398646519,-3000.0,0.0001914,2]
[334654126,1723398646529,-151.0,0.0001914,2]
[334654127,1723398646538,-151.0,0.0001914,2]
[334654128,1723398646547,-151.0,0.00019147,2]
[334654129,1723398646557,-3000.0,0.0001915,2]
[334654130,1723398646566,-2139.82745581,0.00019155,2]
[334654131,1723398646576,-3000.0,0.0001916,2]
[334654132,1723398646585,-2280.2888261,0.00019167,3]
[334654133,1723398646595,-1587.19545172,0.00019167,2]
[334654134,1723398646604,-309.52024362,0.00019167,2]
[334654135,1723398646614,-5240.178669,0.00019167,2]
[334654136,1723398646627,-3000.0,0.0001917,2]
[334654137,1723398646636,-200.0,0.00019173,2]
[334654138,1723398646646,-200.0,0.00019173,2]
[334654139,1723398646657,-250.0,0.00019173,2]
[334654140,1723398646667,-200.0,0.00019173,2]
[334654141,1723398646676,-151.0,0.00019177,2]
[334654142,1723398646686,-159.38116829,0.00019177,2]
[334654143,1723398646696,-918.85438638,0.00019177,2]
[334654144,1723398646706,-5060.54149865,0.00019177,2]
[334654158,1723398647941,-154.76012181,0.0001784,2]
[334654159,1723398647950,-151.0,0.00018886,2]
[334654160,1723398647959,-154.9926017,0.00019167,2]
[334654161,1723398647968,-204.26510674,0.00019177,2]
[334654201,1723399520213,728.15079492,9.999e-05,2]
[334654212,1723399639156,-250.53341872,0.00015744,2]
[334654213,1723399639178,-37.28276539,0.00016247,2]
[334654214,1723399640139,-216.0495508,0.00016247,2]
[334654215,1723399640164,-1178.8111056,0.00016252,2]
[334654216,1723399640187,-154.76012181,0.00016532,2]
[334654217,1723399640211,-159.941972,0.00016534,2]
[334654218,1723399640234,-159.941972,0.00016678,2]
[334654219,1723399640257,-159.941972,0.00016821,2]
[334654220,1723399640278,-9.47775294,0.00016929,2]
[334654325,1723399840289,-159.941972,0.0001701,2]
[334654326,1723399840299,-159.941972,0.00017305,2]
[334654327,1723399840309,-159.941972,0.00017601,2]
[334654328,1723399840319,-159.941972,0.00017896,2]
[334654329,1723399840330,-1701.50955113,0.00017965,2]
[334654365,1723399846072,-3178.11897475,0.00017965,2]
[334654366,1723399846081,-7007.90701187,0.00018125,2]
[334654367,1723399846091,-1500.0,0.00018125,2]
[334654368,1723399846101,-5132.08313753,0.00018125,2]
[334654369,1723399846111,-4879.62852588,0.00018203,2]
[334654370,1723399846121,-300.0,0.00018242,2]
[334654371,1723399846131,-300.0,0.00018242,2]
[334654372,1723399846140,-2141.01768748,0.00018316,2]
[334654373,1723399846150,-9430.85260519,0.00018489,2]
[334654374,1723399846159,-1011.055116,0.000185,2]
[334654375,1723399846168,-153.0,0.00018552,2]
[334654376,1723399846178,-153.0,0.00018552,2]
[334654377,1723399846188,-153.0,0.00018552,2]
[334654378,1723399846200,-153.0,0.00018552,2]
[334654380,1723399846211,-153.0,0.00018552,2]
[334654382,1723399846220,-153.0,0.00018552,2]
[334654384,1723399846230,-153.0,0.00018552,2]
[334654385,1723399846239,-153.0,0.00018552,2]
[334654386,1723399846249,-153.0,0.00018552,2]
[334654387,1723399846259,-153.0,0.00018552,2]
[334654388,1723399846269,-153.0,0.00018552,2]
[334654389,1723399846278,-153.0,0.00018552,2]
[334654390,1723399846288,-153.0,0.00018552,2]
[334654391,1723399846298,-153.0,0.00018552,2]
[334654392,1723399846308,-153.0,0.00018552,2]
[334654393,1723399846318,-153.0,0.00018552,2]
[334654394,1723399846327,-153.0,0.00018552,2]
[334654395,1723399846337,-153.0,0.00018552,2]
[334654396,1723399846347,-153.0,0.00018552,2]
[334654397,1723399846357,-153.0,0.00018552,2]
[334654398,1723399846367,-153.0,0.00018552,2]
[334654399,1723399846377,-153.0,0.00018552,2]
[334654400,1723399846387,-153.0,0.00018552,2]
[334654401,1723399846396,-153.0,0.00018552,2]
[334654402,1723399846405,-153.0,0.00018552,2]
[334654403,1723399846416,-153.0,0.00018552,2]
[334654404,1723399846431,-153.0,0.00018552,2]
[334654405,1723399846440,-153.0,0.00018552,2]
[334654406,1723399846452,-153.0,0.00018552,2]
[334654407,1723399846462,-153.0,0.00018552,2]
[334654408,1723399846475,-153.0,0.00018552,2]
[334654409,1723399846484,-153.0,0.00018552,2]
[334654410,1723399846495,-153.0,0.00018552,2]
[334654411,1723399846507,-153.0,0.00018552,2]
[334654412,1723399846519,-153.0,0.00018552,2]
[334654413,1723399846529,-153.0,0.00018552,2]
[334654414,1723399846539,-153.0,0.00018552,2]
[334654415,1723399846549,-153.0,0.00018552,2]
[334654416,1723399846559,-153.0,0.00018552,2]
[334654417,1723399846570,-153.0,0.00018552,2]
[334654418,1723399846579,-153.0,0.00018552,2]